[Event "2026 European Womens Championship"]
[Site "Batumi, GE"]
[Date "2026.05.28"]
[Round "4"]
[White "Abdinova, Narmin"]
[Black "Matnadze Bujiashvili, Ann"]
[Result "1-0"]
[Board "32"]
[TimeControl "5400+30"]
[WhiteFideId "13425340"]
[BlackFideId "13601377"]
[WhiteElo "2165"]
[BlackElo "2310"]
[WhiteTitle "WIM"]
[BlackTitle "IM"]
[WhiteClock "0:02:22"]
[BlackClock "0:01:27"]
[Variant "Standard"]

1. e4 {[%clk 1:24:56]}  c5 {[%clk 1:30:04]} 2. Nf3 {[%clk 1:25:21]}  Nc6 {[%clk 1:30:30]} 3. d4 {[%clk 1:25:45]}  cxd4 {[%clk 1:30:56]}
4. Nxd4 {[%clk 1:26:12]}  Nf6 {[%clk 1:31:15]} 5. Nc3 {[%clk 1:26:11]}  d6 {[%clk 1:31:33]} 6. Be2 {[%clk 1:26:04]}  Nxd4 {[%clk 1:31:55]}
7. Qxd4 {[%clk 1:26:29]}  g6 {[%clk 1:32:17]} 8. g4 {[%clk 1:26:18]}  Bg7 {[%clk 1:29:12]} 9. g5 {[%clk 1:26:23]}  Nh5 {[%clk 1:29:27]}
10. Qd3 {[%clk 1:26:44]}  Be6 {[%clk 1:27:10]} 11. Nd5 {[%clk 1:23:30]}  Rc8 {[%clk 1:24:38]} 12. Be3 {[%clk 1:19:13]}  f5 {[%clk 1:16:02]}
13. O-O-O {[%clk 0:51:34]}  O-O {[%clk 1:03:56]} 14. Rd2 {[%clk 0:49:08]}  Rf7 {[%clk 0:50:51]} 15. a3 {[%clk 0:35:38]}  b5 {[%clk 0:23:05]}
16. Bxa7 {[%clk 0:23:48]}  Bxd5 {[%clk 0:15:09]} 17. Qxd5 {[%clk 0:18:40]}  Nf4 {[%clk 0:12:40]} 18. Qb3 {[%clk 0:17:47]}  fxe4 {[%clk 0:09:08]}
19. Bxb5 {[%clk 0:09:40]}  e6 {[%clk 0:09:12]} 20. Be3 {[%clk 0:08:35]}  d5 {[%clk 0:09:24]} 21. Kb1 {[%clk 0:08:28]}  Qxg5 {[%clk 0:06:51]}
22. c4 {[%clk 0:05:46]}  Rb8 {[%clk 0:03:36]} 23. cxd5 {[%clk 0:05:26]}  Qg2 {[%clk 0:03:10]} 24. dxe6 {[%clk 0:03:57]}  Qxh1+ {[%clk 0:03:02]}
25. Rd1 {[%clk 0:04:24]}  Qxd1+ {[%clk 0:02:53]} 26. Qxd1 {[%clk 0:04:51]}  Nxe6 {[%clk 0:03:05]} 27. Bc4 {[%clk 0:03:01]}  Rxb2+ {[%clk 0:02:53]}
28. Kc1 {[%clk 0:03:21]}  Kh8 {[%clk 0:02:13]} 29. Qd6 {[%clk 0:02:19]}  Rfb7 {[%clk 0:01:07]} 30. Kd1 {[%clk 0:01:35]}  Nf8 {[%clk 0:00:46]}
31. Bd4 {[%clk 0:01:20]}  Rb8 {[%clk 0:00:37]} 32. Bxb2 {[%clk 0:01:25]}  Rxb2 {[%clk 0:00:50]} 33. Qd5 {[%clk 0:01:36]}  Rb1+ {[%clk 0:01:19]}
34. Kc2 {[%clk 0:01:58]}  Rb2+ {[%clk 0:01:27]} 35. Kc1 {[%clk 0:02:22]} 1-0

[Event "2026 European Womens Championship"]
[Site "Batumi, GE"]
[Date "2026.05.28"]
[Round "4"]
[White "Hrebenshchykova, Yelyzaveta"]
[Black "Ivanytska, Liudmyla"]
[Result "1-0"]
[Board "33"]
[TimeControl "5400+30"]
[WhiteFideId "14159899"]
[BlackFideId "14176211"]
[WhiteElo "2309"]
[BlackElo "2112"]
[WhiteTitle "WGM"]
[WhiteClock "0:06:09"]
[BlackClock "0:16:09"]
[Variant "Standard"]

1. e4 {[%clk 1:30:59]}  c5 {[%clk 1:28:13]} 2. Nf3 {[%clk 1:31:23]}  e6 {[%clk 1:28:21]} 3. d4 {[%clk 1:31:49]}  cxd4 {[%clk 1:28:49]}
4. Nxd4 {[%clk 1:32:14]}  Nc6 {[%clk 1:29:15]} 5. Nc3 {[%clk 1:32:40]}  Qc7 {[%clk 1:29:38]} 6. Be3 {[%clk 1:31:59]}  a6 {[%clk 1:29:41]}
7. Bd3 {[%clk 1:32:14]}  Nf6 {[%clk 1:28:12]} 8. O-O {[%clk 1:32:23]}  Be7 {[%clk 1:27:10]} 9. Kh1 {[%clk 1:28:39]}  d6 {[%clk 1:25:23]}
10. f4 {[%clk 1:20:29]}  Nxd4 {[%clk 1:20:13]} 11. Bxd4 {[%clk 1:20:55]}  e5 {[%clk 1:20:42]} 12. Be3 {[%clk 1:03:05]}  exf4 {[%clk 1:20:59]}
13. Bxf4 {[%clk 1:03:31]}  Be6 {[%clk 1:20:48]} 14. Qe1 {[%clk 0:50:28]}  O-O {[%clk 1:18:17]} 15. e5 {[%clk 0:50:54]}  dxe5 {[%clk 1:18:40]}
16. Bxe5 {[%clk 0:51:21]}  Qd8 {[%clk 1:14:31]} 17. Rd1 {[%clk 0:44:10]}  Nd7 {[%clk 1:11:52]} 18. Qg3 {[%clk 0:40:03]}  g6 {[%clk 1:10:32]}
19. Be4 {[%clk 0:33:53]}  Qc8 {[%clk 1:08:32]} 20. Nd5 {[%clk 0:30:43]}  Bd8 {[%clk 0:56:29]} 21. Bc3 {[%clk 0:27:47]}  f5 {[%clk 0:50:16]}
22. Bf3 {[%clk 0:20:06]}  a5 {[%clk 0:39:32]} 23. Qd6 {[%clk 0:06:43]}  Ra6 {[%clk 0:38:07]} 24. Ne7+ {[%clk 0:07:09]}  Bxe7 {[%clk 0:38:16]}
25. Qxe7 {[%clk 0:07:38]}  Rf7 {[%clk 0:38:34]} 26. Qg5 {[%clk 0:08:06]}  b5 {[%clk 0:34:56]} 27. a3 {[%clk 0:08:34]}  Qc7 {[%clk 0:32:15]}
28. Rfe1 {[%clk 0:08:13]}  Nf8 {[%clk 0:29:47]} 29. Qe3 {[%clk 0:06:35]}  b4 {[%clk 0:29:16]} 30. axb4 {[%clk 0:06:33]}  axb4 {[%clk 0:29:42]}
31. Bxb4 {[%clk 0:06:59]}  Qxc2 {[%clk 0:27:36]} 32. Bc3 {[%clk 0:05:28]}  Raa7 {[%clk 0:21:07]} 33. Rd8 {[%clk 0:05:52]}  Rae7 {[%clk 0:15:50]}
34. Qd4 {[%clk 0:05:51]}  Rg7 {[%clk 0:16:09]} 35. Qf6 {[%clk 0:06:09]} 1-0

[Event "2026 European Womens Championship"]
[Site "Batumi, GE"]
[Date "2026.05.28"]
[Round "4"]
[White "Huseynova, Lala"]
[Black "Unuk, Laura"]
[Result "0-1"]
[Board "34"]
[TimeControl "5400+30"]
[WhiteFideId "13431781"]
[BlackFideId "14609215"]
[WhiteElo "2149"]
[BlackElo "2289"]
[WhiteTitle "WFM"]
[BlackTitle "IM"]
[WhiteClock "0:02:40"]
[BlackClock "0:02:23"]
[Variant "Standard"]

1. e4 {[%clk 1:30:51]}  e5 {[%clk 1:26:58]} 2. Nf3 {[%clk 1:31:08]}  Nc6 {[%clk 1:27:23]} 3. Bb5 {[%clk 1:31:29]}  a6 {[%clk 1:27:46]}
4. Ba4 {[%clk 1:31:55]}  d6 {[%clk 1:28:09]} 5. O-O {[%clk 1:24:11]}  Bd7 {[%clk 1:28:30]} 6. Nc3 {[%clk 1:22:27]}  Nf6 {[%clk 1:17:12]}
7. d4 {[%clk 1:10:54]}  b5 {[%clk 1:02:43]} 8. dxe5 {[%clk 1:09:23]}  dxe5 {[%clk 0:56:44]} 9. Bb3 {[%clk 1:08:23]}  Bd6 {[%clk 0:56:20]}
10. Bg5 {[%clk 0:53:34]}  h6 {[%clk 0:55:29]} 11. Bxf6 {[%clk 0:43:22]}  Qxf6 {[%clk 0:54:49]} 12. Nd5 {[%clk 0:43:50]}  Qg6 {[%clk 0:54:22]}
13. Qd3 {[%clk 0:42:18]}  Rd8 {[%clk 0:51:42]} 14. Nh4 {[%clk 0:38:50]}  Qg5 {[%clk 0:42:49]} 15. Nf5 {[%clk 0:36:38]}  Bxf5 {[%clk 0:43:03]}
16. exf5 {[%clk 0:37:05]}  O-O {[%clk 0:37:19]} 17. Rae1 {[%clk 0:31:44]}  Na5 {[%clk 0:30:11]} 18. f6 {[%clk 0:20:21]}  Nxb3 {[%clk 0:28:27]}
19. fxg7 {[%clk 0:16:52]}  Rfe8 {[%clk 0:18:46]} 20. h4 {[%clk 0:13:38]}  Qxg7 {[%clk 0:16:31]} 21. Qxb3 {[%clk 0:11:53]}  e4 {[%clk 0:16:45]}
22. Qh3 {[%clk 0:09:24]}  Be5 {[%clk 0:14:01]} 23. Ne3 {[%clk 0:07:25]}  Bxb2 {[%clk 0:13:19]} 24. Nf5 {[%clk 0:07:40]}  Qg6 {[%clk 0:10:57]}
25. Re3 {[%clk 0:07:04]}  Kh7 {[%clk 0:11:08]} 26. c3 {[%clk 0:04:04]}  Re5 {[%clk 0:10:20]} 27. Ng3 {[%clk 0:04:21]}  f5 {[%clk 0:07:45]}
28. Ne2 {[%clk 0:03:46]}  Qf7 {[%clk 0:07:03]} 29. Qg3 {[%clk 0:03:14]}  Re7 {[%clk 0:04:55]} 30. f3 {[%clk 0:02:55]}  Ba3 {[%clk 0:04:30]}
31. fxe4 {[%clk 0:01:48]}  Bc5 {[%clk 0:04:56]} 32. Nd4 {[%clk 0:02:11]}  Rxd4 {[%clk 0:05:22]} 33. cxd4 {[%clk 0:01:01]}  Bxd4 {[%clk 0:05:49]}
34. Kh1 {[%clk 0:00:36]}  Bxe3 {[%clk 0:05:57]} 35. Qxe3 {[%clk 0:01:02]}  Qe6 {[%clk 0:05:52]} 36. Qc3 {[%clk 0:00:33]}  Qxe4 {[%clk 0:03:12]}
37. Qf6 {[%clk 0:00:46]}  Qe6 {[%clk 0:01:02]} 38. Rxf5 {[%clk 0:00:45]}  Qxf6 {[%clk 0:01:12]} 39. Rxf6 {[%clk 0:01:14]}  a5 {[%clk 0:01:08]}
40. Rc6 {[%clk 0:01:21]}  b4 {[%clk 0:00:44]} 41. Kh2 {[%clk 0:14:03]}  a4 {[%clk 0:30:10]} 42. Rc4 {[%clk 0:12:35]}  c5 {[%clk 0:24:21]}
43. Rxc5 {[%clk 0:12:34]}  Rb7 {[%clk 0:24:37]} 44. g4 {[%clk 0:07:45]}  b3 {[%clk 0:23:11]} 45. axb3 {[%clk 0:08:01]}  axb3 {[%clk 0:23:37]}
46. Rc1 {[%clk 0:08:22]}  b2 {[%clk 0:22:31]} 47. Rb1 {[%clk 0:08:50]}  Rb3 {[%clk 0:22:58]} 48. Kg2 {[%clk 0:07:49]}  Kg6 {[%clk 0:22:57]}
49. Kf2 {[%clk 0:06:43]}  Kf7 {[%clk 0:20:37]} 50. Ke2 {[%clk 0:06:55]}  Rh3 {[%clk 0:18:36]} 51. Kf2 {[%clk 0:06:57]}  Ke6 {[%clk 0:17:14]}
52. Kg2 {[%clk 0:05:41]}  Rb3 {[%clk 0:17:40]} 53. Kf2 {[%clk 0:04:03]}  Ke5 {[%clk 0:17:46]} 54. Ke2 {[%clk 0:03:12]}  Rh3 {[%clk 0:16:00]}
55. Kf2 {[%clk 0:02:16]}  Kd4 {[%clk 0:09:03]} 56. g5 {[%clk 0:01:14]}  Kc3 {[%clk 0:05:28]} 57. g6 {[%clk 0:00:33]}  Rxh4 {[%clk 0:05:49]}
58. Rg1 {[%clk 0:00:47]}  Rf4+ {[%clk 0:05:01]} 59. Kg3 {[%clk 0:00:36]}  Rf6 {[%clk 0:04:12]} 60. Kh4 {[%clk 0:00:34]}  Rxg6 {[%clk 0:04:26]}
61. Rxg6 {[%clk 0:00:59]}  b1=Q {[%clk 0:04:49]} 62. Rxh6 {[%clk 0:01:27]}  Qg1 {[%clk 0:04:40]} 63. Kh5 {[%clk 0:01:39]}  Kd4 {[%clk 0:04:44]}
64. Rg6 {[%clk 0:01:54]}  Qh2+ {[%clk 0:05:11]} 65. Kg5 {[%clk 0:02:22]}  Ke5 {[%clk 0:05:28]} 66. Rg7 {[%clk 0:02:42]}  Ke6 {[%clk 0:04:22]}
67. Rg6+ {[%clk 0:03:06]}  Ke5 {[%clk 0:02:10]} 68. Rg7 {[%clk 0:03:28]}  Qd2 {[%clk 0:01:42]} 69. Kh5 {[%clk 0:03:03]}  Kf6 {[%clk 0:01:59]}
70. Rg4 {[%clk 0:03:18]}  Kf5 {[%clk 0:01:59]} 71. Rf4+ {[%clk 0:02:40]}  Kxf4 {[%clk 0:02:23]} 0-1

[Event "2026 European Womens Championship"]
[Site "Batumi, GE"]
[Date "2026.05.28"]
[Round "4"]
[White "Pogorelskikh, Sofia"]
[Black "Liashkevich, Lizaveta"]
[Result "1-0"]
[Board "35"]
[TimeControl "5400+30"]
[WhiteFideId "44164548"]
[BlackFideId "13518658"]
[WhiteElo "2284"]
[BlackElo "2079"]
[WhiteTitle "WGM"]
[BlackTitle "WFM"]
[WhiteClock "0:26:34"]
[BlackClock "0:25:09"]
[Variant "Standard"]

1. e4 {[%clk 1:30:07]}  e6 {[%clk 1:30:50]} 2. d4 {[%clk 1:30:29]}  d5 {[%clk 1:31:14]} 3. Nc3 {[%clk 1:30:49]}  Nf6 {[%clk 1:31:36]}
4. Bg5 {[%clk 1:31:09]}  dxe4 {[%clk 1:31:28]} 5. Nxe4 {[%clk 1:31:27]}  Be7 {[%clk 1:31:32]} 6. Bxf6 {[%clk 1:31:10]}  gxf6 {[%clk 1:31:45]}
7. Qd2 {[%clk 1:30:53]}  c5 {[%clk 1:30:48]} 8. dxc5 {[%clk 1:25:39]}  Qxd2+ {[%clk 1:28:58]} 9. Kxd2 {[%clk 1:25:10]}  a5 {[%clk 1:22:15]}
10. Rd1 {[%clk 1:22:30]}  O-O {[%clk 1:09:51]} 11. Kc1 {[%clk 1:01:01]}  Nd7 {[%clk 1:01:20]} 12. g3 {[%clk 0:57:06]}  f5 {[%clk 0:54:21]}
13. c6 {[%clk 0:50:21]}  Ne5 {[%clk 0:41:26]} 14. Nc3 {[%clk 0:47:52]}  Nxc6 {[%clk 0:41:20]} 15. Bg2 {[%clk 0:47:10]}  Rd8 {[%clk 0:39:46]}
16. Nge2 {[%clk 0:45:43]}  Bd7 {[%clk 0:39:07]} 17. a4 {[%clk 0:44:16]}  Be8 {[%clk 0:37:28]} 18. f4 {[%clk 0:41:37]}  Rxd1+ {[%clk 0:35:39]}
19. Rxd1 {[%clk 0:41:16]}  Rd8 {[%clk 0:35:23]} 20. b3 {[%clk 0:38:06]}  Bc5 {[%clk 0:32:51]} 21. Rxd8 {[%clk 0:34:59]}  Nxd8 {[%clk 0:33:16]}
22. Kd2 {[%clk 0:33:34]}  Kf8 {[%clk 0:30:51]} 23. Kd3 {[%clk 0:30:53]}  Ke7 {[%clk 0:28:47]} 24. Kc4 {[%clk 0:27:33]}  b6 {[%clk 0:25:02]}
25. Nd1 {[%clk 0:22:05]}  Kd6 {[%clk 0:19:24]} 26. c3 {[%clk 0:20:28]}  Kc7 {[%clk 0:14:21]} 27. b4 {[%clk 0:17:55]}  Be7 {[%clk 0:14:03]}
28. Nb2 {[%clk 0:16:57]}  Nb7 {[%clk 0:12:39]} 29. Bxb7 {[%clk 0:15:16]}  Kxb7 {[%clk 0:13:08]} 30. Nd4 {[%clk 0:14:25]}  Bc6 {[%clk 0:09:57]}
31. Nxc6 {[%clk 0:13:23]}  Kxc6 {[%clk 0:10:26]} 32. Nd3 {[%clk 0:10:03]}  f6 {[%clk 0:08:41]} 33. Nc1 {[%clk 0:10:14]}  e5 {[%clk 0:06:15]}
34. bxa5 {[%clk 0:09:37]}  bxa5 {[%clk 0:06:41]} 35. Nb3 {[%clk 0:08:42]}  Bd8 {[%clk 0:06:01]} 36. Nc5 {[%clk 0:08:08]}  Bb6 {[%clk 0:03:59]}
37. Ne6 {[%clk 0:06:15]}  Bc7 {[%clk 0:01:27]} 38. h3 {[%clk 0:04:18]}  Bd6 {[%clk 0:01:31]} 39. h4 {[%clk 0:02:53]}  Kd7 {[%clk 0:00:52]}
40. Kd5 {[%clk 0:03:11]}  h6 {[%clk 0:00:41]} 41. h5 {[%clk 0:00:37]}  e4 {[%clk 0:00:36]} 42. Nd4 {[%clk 0:28:31]}  e3 {[%clk 0:29:44]}
43. Kc4 {[%clk 0:26:20]}  Ba3 {[%clk 0:26:49]} 44. Kd3 {[%clk 0:26:22]}  Bb2 {[%clk 0:26:49]} 45. Ne2 {[%clk 0:25:33]}  Kc6 {[%clk 0:23:39]}
46. Kxe3 {[%clk 0:25:41]}  Kd5 {[%clk 0:24:02]} 47. Kd3 {[%clk 0:25:56]}  Ba3 {[%clk 0:24:20]} 48. Nd4 {[%clk 0:25:57]}  Bf8 {[%clk 0:24:38]}
49. Nxf5 {[%clk 0:24:50]}  Kc5 {[%clk 0:25:03]} 50. Nd4 {[%clk 0:24:42]}  Bd6 {[%clk 0:25:03]} 51. Nb3+ {[%clk 0:24:46]}  Kd5 {[%clk 0:25:13]}
52. Nxa5 {[%clk 0:24:51]}  Bc5 {[%clk 0:25:39]} 53. Nc4 {[%clk 0:24:26]}  Bf2 {[%clk 0:25:58]} 54. Ne3+ {[%clk 0:24:39]}  Kc5 {[%clk 0:26:16]}
55. g4 {[%clk 0:24:50]}  Bg3 {[%clk 0:26:34]} 56. Ke4 {[%clk 0:25:09]} 1-0

[Event "2026 European Womens Championship"]
[Site "Batumi, GE"]
[Date "2026.05.28"]
[Round "4"]
[White "Kobak, Polina"]
[Black "Tsolakidou, Stavroula"]
[Result "1-0"]
[Board "36"]
[TimeControl "5400+30"]
[WhiteFideId "24269727"]
[BlackFideId "4264312"]
[WhiteElo "1986"]
[BlackElo "2455"]
[WhiteTitle "WFM"]
[BlackTitle "IM"]
[WhiteClock "0:11:43"]
[BlackClock "0:12:48"]
[Variant "Standard"]

1. d4 {[%clk 1:29:44]}  Nf6 {[%clk 1:30:52]} 2. c4 {[%clk 1:30:10]}  g6 {[%clk 1:31:17]} 3. Nc3 {[%clk 1:30:31]}  Bg7 {[%clk 1:31:41]}
4. e4 {[%clk 1:30:46]}  d6 {[%clk 1:32:06]} 5. Be2 {[%clk 1:30:50]}  O-O {[%clk 1:32:27]} 6. Bg5 {[%clk 1:31:08]}  Na6 {[%clk 1:32:27]}
7. Qd2 {[%clk 1:28:25]}  Qe8 {[%clk 1:32:35]} 8. h4 {[%clk 1:22:15]}  h5 {[%clk 1:20:13]} 9. f3 {[%clk 1:21:00]}  c5 {[%clk 1:13:47]}
10. d5 {[%clk 1:21:14]}  Nc7 {[%clk 1:13:35]} 11. Nh3 {[%clk 1:17:06]}  b5 {[%clk 0:54:37]} 12. cxb5 {[%clk 1:10:51]}  a6 {[%clk 0:54:39]}
13. bxa6 {[%clk 0:58:48]}  Bxa6 {[%clk 0:55:04]} 14. Bh6 {[%clk 0:56:06]}  Qb8 {[%clk 0:49:09]} 15. Bxg7 {[%clk 0:53:50]}  Kxg7 {[%clk 0:49:35]}
16. Nf4 {[%clk 0:53:34]}  Qb6 {[%clk 0:35:44]} 17. b3 {[%clk 0:46:23]}  Bxe2 {[%clk 0:32:00]} 18. Nfxe2 {[%clk 0:42:37]}  Nd7 {[%clk 0:29:55]}
19. O-O {[%clk 0:35:10]}  Ne5 {[%clk 0:29:33]} 20. Kh1 {[%clk 0:32:10]}  Nb5 {[%clk 0:28:15]} 21. Na4 {[%clk 0:27:11]}  Qa7 {[%clk 0:27:18]}
22. Nb2 {[%clk 0:26:31]}  Qa5 {[%clk 0:19:42]} 23. Qg5 {[%clk 0:22:55]}  Qb4 {[%clk 0:17:46]} 24. Nf4 {[%clk 0:15:10]}  Kh7 {[%clk 0:16:57]}
25. Nc4 {[%clk 0:11:41]}  Nxc4 {[%clk 0:16:23]} 26. bxc4 {[%clk 0:12:07]}  Qxc4 {[%clk 0:16:34]} 27. Qxe7 {[%clk 0:11:38]}  Rae8 {[%clk 0:16:14]}
28. Qd7 {[%clk 0:10:57]}  Rd8 {[%clk 0:13:15]} 29. Qe7 {[%clk 0:11:17]}  Rde8 {[%clk 0:13:09]} 30. Qd7 {[%clk 0:09:45]}  Rd8 {[%clk 0:13:04]}
31. Qe7 {[%clk 0:09:58]}  Rde8 {[%clk 0:11:13]} 32. Qg5 {[%clk 0:08:16]}  Nc3 {[%clk 0:08:20]} 33. a4 {[%clk 0:03:47]}  Qd4 {[%clk 0:07:09]}
34. a5 {[%clk 0:03:28]}  c4 {[%clk 0:07:04]} 35. a6 {[%clk 0:03:45]}  Nb5 {[%clk 0:05:33]} 36. Rab1 {[%clk 0:03:10]}  Qc5 {[%clk 0:05:45]}
37. g4 {[%clk 0:02:35]}  hxg4 {[%clk 0:03:03]} 38. h5 {[%clk 0:03:01]}  Rh8 {[%clk 0:01:20]} 39. hxg6+ {[%clk 0:00:47]}  Kg7+ {[%clk 0:01:27]}
40. Kg2 {[%clk 0:01:11]}  Re5 {[%clk 0:00:48]} 41. Qxg4 {[%clk 0:28:14]}  f5 {[%clk 0:19:17]} 42. Qg5 {[%clk 0:16:50]}  c3 {[%clk 0:12:48]}
43. Rh1 {[%clk 0:11:43]} 1-0

[Event "2026 European Womens Championship"]
[Site "Batumi, GE"]
[Date "2026.05.28"]
[Round "4"]
[White "Siekanska, Maria"]
[Black "Osmak, Yuliia"]
[Result "1/2-1/2"]
[Board "37"]
[TimeControl "5400+30"]
[WhiteFideId "21852650"]
[BlackFideId "14101602"]
[WhiteElo "2203"]
[BlackElo "2451"]
[WhiteTitle "WIM"]
[BlackTitle "IM"]
[WhiteClock "0:03:42"]
[BlackClock "0:00:40"]
[Variant "Standard"]

1. e4 {[%clk 1:30:56]}  c5 {[%clk 1:30:58]} 2. Nf3 {[%clk 1:31:19]}  d6 {[%clk 1:31:24]} 3. d4 {[%clk 1:31:42]}  cxd4 {[%clk 1:31:50]}
4. Nxd4 {[%clk 1:32:05]}  Nf6 {[%clk 1:32:17]} 5. Nc3 {[%clk 1:32:25]}  a6 {[%clk 1:32:44]} 6. Bg5 {[%clk 1:32:47]}  e6 {[%clk 1:32:50]}
7. Qe2 {[%clk 1:33:09]}  Be7 {[%clk 1:26:21]} 8. h4 {[%clk 1:22:14]}  h6 {[%clk 1:13:54]} 9. Bxf6 {[%clk 1:11:40]}  Bxf6 {[%clk 1:14:16]}
10. O-O-O {[%clk 1:12:01]}  Nc6 {[%clk 1:06:09]} 11. Nxc6 {[%clk 1:11:17]}  bxc6 {[%clk 1:06:36]} 12. Rh3 {[%clk 1:04:02]}  Rb8 {[%clk 1:01:16]}
13. f4 {[%clk 0:53:03]}  Qb6 {[%clk 0:48:53]} 14. e5 {[%clk 0:51:27]}  dxe5 {[%clk 0:48:11]} 15. fxe5 {[%clk 0:51:14]}  Be7 {[%clk 0:48:11]}
16. b3 {[%clk 0:28:51]}  Qa5 {[%clk 0:40:24]} 17. Qe4 {[%clk 0:26:30]}  Bb7 {[%clk 0:40:20]} 18. Bc4 {[%clk 0:25:44]}  Rd8 {[%clk 0:31:42]}
19. Rxd8+ {[%clk 0:24:40]}  Bxd8 {[%clk 0:23:41]} 20. Bxe6 {[%clk 0:21:27]}  O-O {[%clk 0:23:56]} 21. Bc4 {[%clk 0:21:08]}  Bc8 {[%clk 0:17:30]}
22. Rg3 {[%clk 0:15:53]}  Qc7 {[%clk 0:09:51]} 23. Qf4 {[%clk 0:12:02]}  Re8 {[%clk 0:06:22]} 24. Ne4 {[%clk 0:08:57]}  Qxe5 {[%clk 0:02:41]}
25. Qxf7+ {[%clk 0:09:11]}  Kh8 {[%clk 0:03:07]} 26. Kb1 {[%clk 0:08:32]}  Qe7 {[%clk 0:00:45]} 27. Rxg7 {[%clk 0:02:08]}  Qxf7 {[%clk 0:01:08]}
28. Rxf7 {[%clk 0:02:35]}  Bxh4 {[%clk 0:00:59]} 29. Nf6 {[%clk 0:02:31]}  Re1+ {[%clk 0:01:02]} 30. Kb2 {[%clk 0:03:00]}  Bf5 {[%clk 0:01:12]}
31. Nh5 {[%clk 0:01:51]}  Be4 {[%clk 0:00:48]} 32. g3 {[%clk 0:01:09]}  Bg5 {[%clk 0:01:04]} 33. Rf8+ {[%clk 0:00:50]}  Kh7 {[%clk 0:01:32]}
34. Re8 {[%clk 0:00:48]}  Bc1+ {[%clk 0:00:56]} 35. Kc3 {[%clk 0:01:16]}  Re3+ {[%clk 0:01:01]} 36. Kd4 {[%clk 0:01:26]}  c5+ {[%clk 0:00:58]}
37. Kxc5 {[%clk 0:01:47]}  Bg6 {[%clk 0:00:44]} 38. Bg8+ {[%clk 0:02:00]}  Kh8 {[%clk 0:01:07]} 39. Rd8 {[%clk 0:00:38]}  Re5+ {[%clk 0:00:46]}
40. Bd5+ {[%clk 0:01:02]}  Kh7 {[%clk 0:00:56]} 41. Rd7+ {[%clk 0:00:43]}  Kh8 {[%clk 0:01:16]} 42. Nf4 {[%clk 0:29:25]}  Bxc2 {[%clk 0:31:15]}
43. Kb6 {[%clk 0:20:27]}  Rg5 {[%clk 0:28:34]} 44. Rd6 {[%clk 0:12:57]}  Kh7 {[%clk 0:26:12]} 45. Ne2 {[%clk 0:10:40]}  Ba3 {[%clk 0:17:32]}
46. Rd7+ {[%clk 0:10:31]}  Kh8 {[%clk 0:13:27]} 47. Bc4 {[%clk 0:06:55]}  a5 {[%clk 0:10:45]} 48. Bd3 {[%clk 0:05:14]}  Bc5+ {[%clk 0:06:42]}
49. Ka6 {[%clk 0:04:51]}  Bxd3+ {[%clk 0:04:15]} 50. Rxd3 {[%clk 0:05:15]}  Bb4 {[%clk 0:04:39]} 51. Nc3 {[%clk 0:04:41]}  Kg7 {[%clk 0:04:28]}
52. Nd5 {[%clk 0:04:30]}  Be1 {[%clk 0:04:51]} 53. Nf4 {[%clk 0:02:39]}  Kf7 {[%clk 0:04:58]} 54. Rd7+ {[%clk 0:02:31]}  Ke8 {[%clk 0:04:21]}
55. Rd5 {[%clk 0:02:07]}  Bxg3 {[%clk 0:01:16]} 56. Rxg5 {[%clk 0:02:31]}  hxg5 {[%clk 0:01:44]} 57. Ne6 {[%clk 0:02:45]}  g4 {[%clk 0:02:03]}
58. Kxa5 {[%clk 0:01:50]}  Ke7 {[%clk 0:00:50]} 59. Nd4 {[%clk 0:01:45]}  Kf6 {[%clk 0:01:09]} 60. Ne2 {[%clk 0:01:24]}  Be1+ {[%clk 0:01:10]}
61. Kb5 {[%clk 0:00:50]}  Ke5 {[%clk 0:01:18]} 62. a4 {[%clk 0:01:09]}  Ke4 {[%clk 0:01:33]} 63. a5 {[%clk 0:01:31]}  Bf2 {[%clk 0:01:43]}
64. Kc4 {[%clk 0:01:12]}  Ke3 {[%clk 0:01:55]} 65. Nd4 {[%clk 0:01:35]}  Ke4 {[%clk 0:01:46]} 66. Ne2 {[%clk 0:02:00]}  Ke3 {[%clk 0:00:41]}
67. Nd4 {[%clk 0:02:26]}  Ke4 {[%clk 0:00:37]} 68. Ne2 {[%clk 0:02:51]}  Ke3 {[%clk 0:00:39]} 69. Nd4 {[%clk 0:03:16]}  Ke4 {[%clk 0:01:02]}
70. Ne2 {[%clk 0:03:42]}  Ke3 {[%clk 0:00:40]} 1/2-1/2

[Event "2026 European Womens Championship"]
[Site "Batumi, GE"]
[Date "2026.05.28"]
[Round "4"]
[White "Calzetta Ruiz, Monica"]
[Black "Khotenashvili, Bella"]
[Result "1/2-1/2"]
[Board "38"]
[TimeControl "5400+30"]
[WhiteFideId "2204185"]
[BlackFideId "13602640"]
[WhiteElo "2199"]
[BlackElo "2415"]
[WhiteTitle "WGM"]
[BlackTitle "GM"]
[WhiteClock "0:01:57"]
[BlackClock "0:09:08"]
[Variant "Standard"]

1. e4 {[%clk 1:30:57]}  e5 {[%clk 1:29:47]} 2. Nf3 {[%clk 1:31:17]}  Nc6 {[%clk 1:30:12]} 3. Bb5 {[%clk 1:31:39]}  a6 {[%clk 1:30:32]}
4. Ba4 {[%clk 1:32:03]}  d6 {[%clk 1:30:49]} 5. O-O {[%clk 1:31:53]}  Bd7 {[%clk 1:30:22]} 6. d4 {[%clk 1:31:59]}  b5 {[%clk 1:29:18]}
7. Bb3 {[%clk 1:32:08]}  Nxd4 {[%clk 1:22:55]} 8. Nxd4 {[%clk 1:32:01]}  exd4 {[%clk 1:23:20]} 9. c3 {[%clk 1:32:17]}  d3 {[%clk 1:15:10]}
10. Qxd3 {[%clk 1:29:48]}  Nf6 {[%clk 1:15:10]} 11. f4 {[%clk 1:24:55]}  Bc6 {[%clk 1:07:27]} 12. Nd2 {[%clk 1:15:36]}  Qd7 {[%clk 0:53:17]}
13. Re1 {[%clk 0:57:31]}  Be7 {[%clk 0:51:55]} 14. Nf3 {[%clk 0:57:20]}  O-O {[%clk 0:50:32]} 15. Nd4 {[%clk 0:51:45]}  Bb7 {[%clk 0:46:01]}
16. Bc2 {[%clk 0:27:01]}  g6 {[%clk 0:44:22]} 17. f5 {[%clk 0:23:22]}  Rfe8 {[%clk 0:38:57]} 18. Qh3 {[%clk 0:22:54]}  Bf8 {[%clk 0:29:40]}
19. Qh4 {[%clk 0:18:52]}  Nh5 {[%clk 0:18:38]} 20. f6 {[%clk 0:13:55]}  c5 {[%clk 0:12:58]} 21. Nf5 {[%clk 0:13:53]}  Re6 {[%clk 0:12:43]}
22. Bg5 {[%clk 0:09:40]}  Rae8 {[%clk 0:12:11]} 23. Ne7+ {[%clk 0:09:44]}  Bxe7 {[%clk 0:12:03]} 24. fxe7 {[%clk 0:10:11]}  f6 {[%clk 0:12:21]}
25. Bh6 {[%clk 0:08:36]}  Qxe7 {[%clk 0:12:38]} 26. a4 {[%clk 0:07:06]}  d5 {[%clk 0:07:52]} 27. axb5 {[%clk 0:07:31]}  axb5 {[%clk 0:08:20]}
28. Ra5 {[%clk 0:05:01]}  Bc6 {[%clk 0:08:31]} 29. Rea1 {[%clk 0:05:01]}  dxe4 {[%clk 0:08:27]} 30. Ra7 {[%clk 0:05:27]}  Bb7 {[%clk 0:08:18]}
31. Be3 {[%clk 0:02:25]}  Ng7 {[%clk 0:04:33]} 32. Qf2 {[%clk 0:02:38]}  c4 {[%clk 0:04:32]} 33. R1a5 {[%clk 0:02:14]}  Qd7 {[%clk 0:03:37]}
34. b3 {[%clk 0:02:12]}  Nf5 {[%clk 0:03:33]} 35. bxc4 {[%clk 0:02:24]}  Nxe3 {[%clk 0:03:51]} 36. Qxe3 {[%clk 0:02:48]}  bxc4 {[%clk 0:02:09]}
37. Ba4 {[%clk 0:02:57]}  Qd3 {[%clk 0:01:43]} 38. Qxd3 {[%clk 0:02:51]}  exd3 {[%clk 0:01:34]} 39. Rxb7 {[%clk 0:03:13]}  Re1+ {[%clk 0:00:54]}
40. Kf2 {[%clk 0:03:40]}  R1e2+ {[%clk 0:00:54]} 41. Kg3 {[%clk 0:26:33]}  R8e3+ {[%clk 0:29:55]} 42. Kh4 {[%clk 0:23:24]}  g5+ {[%clk 0:23:49]}
43. Kh5 {[%clk 0:23:45]}  Re7 {[%clk 0:24:13]} 44. Rxe7 {[%clk 0:21:56]}  Rxe7 {[%clk 0:24:41]} 45. Rc5 {[%clk 0:14:46]}  Re4 {[%clk 0:11:49]}
46. Rxc4 {[%clk 0:14:55]}  Re2 {[%clk 0:11:42]} 47. Bb3 {[%clk 0:12:59]}  Kf8 {[%clk 0:11:13]} 48. Rd4 {[%clk 0:10:15]}  Rxg2 {[%clk 0:11:02]}
49. Rxd3 {[%clk 0:09:57]}  Rxh2+ {[%clk 0:10:52]} 50. Kg4 {[%clk 0:10:25]}  Ke7 {[%clk 0:08:04]} 51. Re3+ {[%clk 0:10:40]}  Kd7 {[%clk 0:08:21]}
52. Rd3+ {[%clk 0:07:50]}  Ke7 {[%clk 0:08:40]} 53. Re3+ {[%clk 0:07:05]}  Kd7 {[%clk 0:09:08]} 54. Rd3+ {[%clk 0:01:57]} 1/2-1/2